[Event "Niedersachsen-ch A 2024"]
[Site "Verden Aller"]
[Date "2024.01.05"]
[Round "3.15"]
[White "Kelemen, Alexander"]
[Black "Stoy, Ulf"]
[Result "1-0"]
[ECO "B06"]
[WhiteElo "1817"]
[BlackElo "1985"]
[Annotator "NA RC"]
[PlyCount "89"]
[EventDate "2024.01.01"]
[EventType "swiss"]
[EventCountry "GER"]
[SourceTitle "playchess.com"]
[Source "ChessBase"]
[SourceQuality "1"]
[TimeControl "40/5400+30:1800+30"]

1. d4 {[%emt 0:00:13]} g6 {[%emt 0:00:41]} 2. e4 {[%emt 0:00:28]} Bg7 {[%emt 0:00:13]} 3. Nc3 {[%emt 0:00:12]} d6 {[%emt 0:01:08]} 4. Be3 {[%emt 0:00:40]} c6 {[%emt 0:01:23]} 5. Qd2 {[%emt 0:00:33]} b5 {[%emt 0:00:58]} 6. Bd3 {[%emt 0:01:23]} Nd7 {[%emt 0:00:50]} 7. Nf3 {[%emt 0:01:10]} a6 {[%emt 0:01:57]} 8. Ne2 {[%emt 0:02:25]} Qc7 {[%emt 0:01:29]} 9. c3 {[%emt 0:00:49]} Bb7 {[%emt 0:00:47]} 10. Ng3 {[%emt 0:00:28]} Rc8 {[%emt 0:01:12]} 11. O-O {[%emt 0:04:09]} e5 {[%emt 0:18:31]} 12. a4 {[%emt 0:02:23]} Ngf6 {[%emt 0:12:12]} 13. Bh6 {[%emt 0:02:09]} O-O {[%emt 0:01:01]} 14. Bxg7 {[%emt 0:09:17]} Kxg7 {[%emt 0:00:02]} 15. h3 {[%emt 0:00:19]} Rce8 {[%emt 0:05:53]} 16. Rfe1 {[%emt 0:02:52]} Ng8 {[%emt 0:16:00]} 17. h4 {[%emt 0:11:57]} f6 {[%emt 0:06:06]} 18. h5 {[%emt 0:04:15]} Rf7 {[%emt 0:00:43]} 19. Nh4 {[%emt 0:06:24]} Nf8 {[%emt 0:04:55]} 20. Bc2 {[%emt 0:09:47]} Bc8 {[%emt 0:02:53]} 21. axb5 {[%emt 0:01:16]} axb5 {[%emt 0:00:18]} 22. Bb3 {[%emt 0:02:53]} Be6 {[%emt 0:03:05]} 23. d5 {[%emt 0:02:37]} cxd5 {[%emt 0:00:10]} 24. Bxd5 {[%emt 0:00:11]} Bxd5 {[%emt 0:06:59]} 25. Qxd5 {[%emt 0:00:13]} Ne7 {[%emt 0:02:11]} 26. Qxb5 {[%emt 0:05:57]} Rb8 {[%emt 0:00:15]} 27. Qe2 {[%emt 0:00:13]} Ne6 {[%emt 0:00:20]} 28. Ra2 {[%emt 0:13:55]} Nf4 {[%emt 0:00:55]} 29. Qd2 {[%emt 0:00:52]} d5 {[%emt 0:00:30]} 30. Rea1 {[%emt 0:00:42]} dxe4 {[%emt 0:03:41]} 31. Nxe4 {[%emt 0:08:36]} Rd8 {[%emt 0:01:42]} 32. Qc2 {[%emt 0:00:44]} Qd7 {[%emt 0:01:45]} 33. g3 {[%emt 0:01:42]} Nxh5 {[%emt 0:02:22]} 34. Ng2 {[%emt 0:01:30]} Nd5 {[%emt 0:00:43]} 35. Ra6 {[%emt 0:03:31]} Qh3 {[%emt 0:00:37]} 36. Rd6 {[%emt 0:01:08]} Rfd7 {[%emt 0:00:51]} 37. Rxd7+ {[%emt 0:00:27]} Rxd7 {[%emt 0:00:02]} 38. Qa4 {[%emt 0:00:35]} Ndf4 {[%emt 0:03:37]} 39. gxf4 {[%emt 0:00:29]} exf4 {[%emt 0:00:01]} 40. Qc4 {[%emt 0:00:33]} f3 {[%emt 0:00:11]} 41. Ne3 {[%emt 0:01:04]} Nf4 {[%emt 0:01:13]} 42. Ng3 {[%emt 0:02:40]} Re7 {[%emt 0:25:59]} 43. Qxf4 {[%emt 0:07:04]} Rxe3 {[%emt 0:00:08]} 44. Ra7+ {[%emt 0:00:07]} Kg8 {[%emt 0:00:17]} 45. Qb8+ {[%emt 0:00:17]} 1-0

[Event "Niedersachsen-ch A 2024"]
[Site "Verden Aller"]
[Date "2024.01.05"]
[Round "3.16"]
[White "Kieselbach, Marvin"]
[Black "Stein, Luis"]
[Result "*"]
[ECO "B10"]
[WhiteElo "1926"]
[BlackElo "1762"]
[Annotator "RC"]
[PlyCount "29"]
[EventDate "2024.01.01"]
[EventType "swiss"]
[EventCountry "GER"]
[SourceTitle "playchess.com"]
[Source "ChessBase"]
[SourceQuality "1"]
[TimeControl "40/5400+30:1800+30"]

1. e4 {[%emt 0:00:19]} c6 {[%emt 0:00:04]} 2. Nf3 {[%emt 0:00:16]} d5 {[%emt 0:00:05]} 3. d3 {[%emt 0:00:50]} g6 {[%emt 0:01:47]} 4. e5 {[%emt 0:01:33]} f6 {[%emt 0:00:20]} 5. d4 {[%emt 0:00:22]} Bg7 {[%emt 0:00:06]} 6. Bf4 {[%emt 0:01:27]} fxe5 {[%emt 0:03:00]} 7. Nxe5 {[%emt 0:02:14]} Qb6 {[%emt 0:02:36]} 8. b3 {[%emt 0:27:06]} Nf6 {[%emt 0:03:47]} 9. Be2 {[%emt 0:08:35]} Nbd7 {[%emt 1:23:15]} 10. O-O {[%emt 0:01:47]} O-O {[%emt 1:18:46]} 11. g3 {[%emt 0:12:10]} Ne4 {[%emt 1:18:04]} 12. Bf3 {[%emt 0:17:58]} Nxe5 {[%emt 0:05:01]} 13. dxe5 {[%emt 0:05:06]} Bh3 {[%emt 0:07:19]} 14. Bg2 {[%emt 0:00:05]} Bxg2 {[%emt 0:00:40]} 15. Kxg2 {[%emt 0:00:02]} *

[Event "Niedersachsen-ch A 2024"]
[Site "Verden Aller"]
[Date "2024.01.05"]
[Round "3.17"]
[White "Tenne, Fabian"]
[Black "Reins, Henning"]
[Result "0-1"]
[ECO "A08"]
[WhiteElo "1817"]
[BlackElo "1950"]
[Annotator "NA RC"]
[PlyCount "82"]
[EventDate "2024.01.01"]
[EventType "swiss"]
[EventCountry "GER"]
[SourceTitle "playchess.com"]
[Source "ChessBase"]
[SourceQuality "1"]
[TimeControl "40/5400+30:1800+30"]

1. Nf3 {[%emt 0:05:08]} Nf6 {[%emt 0:00:23]} 2. g3 {[%emt 0:00:12]} d5 {[%emt 0:00:22]} 3. Bg2 {[%emt 0:00:10]} c5 {[%emt 0:00:17]} 4. O-O {[%emt 0:00:34]} Nc6 {[%emt 0:00:42]} 5. d3 {[%emt 0:00:41]} e5 {[%emt 0:06:01]} 6. Nbd2 {[%emt 0:00:07]} h5 {[%emt 0:01:18]} 7. c4 {[%emt 0:02:09]} d4 {[%emt 0:05:30]} 8. a3 {[%emt 0:03:26]} a5 {[%emt 0:01:36]} 9. Re1 {[%emt 0:08:56]} Bf5 {[%emt 0:08:45]} 10. Nh4 {[%emt 0:04:56]} Be6 {[%emt 0:02:06]} 11. Ndf3 {[%emt 0:02:30]} Nh7 {[%emt 0:05:54]} 12. Qa4 {[%emt 0:01:50]} Bd6 {[%emt 0:04:21]} 13. Bh1 {[%emt 0:00:23]} g5 {[%emt 0:02:17]} 14. Ng2 {[%emt 0:00:26]} h4 {[%emt 0:06:46]} 15. Rd1 {[%emt 0:36:20]} hxg3 {[%emt 0:01:37]} 16. hxg3 {[%emt 0:00:54]} Qf6 {[%emt 0:04:37]} 17. Nge1 {[%emt 0:00:43]} Qh6 {[%emt 0:06:40]} 18. b4 {[%emt 0:04:22]} Nf8 {[%emt 0:14:33]} 19. Bg2 {[%emt 0:00:30]} f6 {[%emt 0:02:10]} 20. bxc5 {[%emt 0:02:23]} Bc7 {[%emt 0:02:46]} 21. Nh4 {[%emt 0:00:21]} Bd7 {[%emt 0:02:01]} 22. Qb3 {[%emt 0:02:42]} Rb8 {[%emt 0:01:37]} 23. e4 {[%emt 0:07:29]} Qh7 {[%emt 0:05:32]} 24. Nf5 {[%emt 0:01:03]} Ne6 {[%emt 0:03:28]} 25. Nd6+ {[%emt 0:00:09]} Ke7 {[%emt 0:01:11]} 26. Nf5+ {[%emt 0:00:41]} Kd8 {[%emt 0:01:12]} 27. g4 {[%emt 0:04:47]} Ne7 {[%emt 0:02:58]} 28. Nxe7 {[%emt 0:01:09]} Kxe7 {[%emt 0:00:04]} 29. a4 {[%emt 0:00:26]} Qh2+ {[%emt 0:02:32]} 30. Kf1 {[%emt 0:00:08]} Nf4 {[%emt 0:00:19]} 31. Bxf4 {[%emt 0:00:12]} Qxf4 {[%emt 0:00:42]} 32. Rdb1 {[%emt 0:05:57]} Bxg4 {[%emt 0:00:31]} 33. Qc2 {[%emt 0:00:06]} Rh4 {[%emt 0:03:31]} 34. Rb2 {[%emt 0:00:28]} Rbh8 {[%emt 0:00:38]} 35. f3 {[%emt 0:01:18]} Rh1+ {[%emt 0:01:14]} 36. Kf2 {[%emt 0:01:43]} Qe3+ {[%emt 0:00:21]} 37. Kg3 {[%emt 0:00:05]} Qf4+ {[%emt 0:01:45]} 38. Kf2 {[%emt 0:00:02]} Qe3+ {[%emt 0:00:25]} 39. Kg3 {[%emt 0:00:02]} Rg1 {[%emt 0:00:39]} 40. Qd2 {[%emt 0:00:13]} Rxg2+ {[%emt 0:00:34]} 41. Nxg2 {[%emt 0:31:10]} Qxf3# {[%emt 0:31:05]} 0-1

[Event "Niedersachsen-ch A 2024"]
[Site "Verden Aller"]
[Date "2024.01.05"]
[Round "3.18"]
[White "Ehlert, Horst"]
[Black "Carsten, Juergen"]
[Result "1/2-1/2"]
[ECO "A20"]
[WhiteElo "1940"]
[BlackElo "1749"]
[Annotator "NA RC"]
[PlyCount "99"]
[EventDate "2024.01.01"]
[EventType "swiss"]
[EventCountry "GER"]
[SourceTitle "playchess.com"]
[Source "ChessBase"]
[SourceQuality "1"]
[TimeControl "40/5400+30:1800+30"]

1. c4 {[%emt 0:00:51]} e5 {[%emt 0:01:24]} 2. g3 {[%emt 0:00:29]} c6 {[%emt 0:01:17]} 3. d4 {[%emt 0:02:29]} Bb4+ {[%emt 0:05:00]} 4. Bd2 {[%emt 0:02:25]} Bxd2+ {[%emt 0:01:50]} 5. Qxd2 {[%emt 0:01:11]} exd4 {[%emt 0:03:06]} 6. Qxd4 {[%emt 0:00:35]} Qf6 {[%emt 0:00:15]} 7. Nf3 {[%emt 0:03:56]} Na6 {[%emt 0:01:48]} 8. Nc3 {[%emt 0:03:40]} Qxd4 {[%emt 0:07:11]} 9. Nxd4 {[%emt 0:00:52]} Nf6 {[%emt 0:05:37]} 10. Bg2 {[%emt 0:00:44]} O-O {[%emt 0:00:57]} 11. O-O {[%emt 0:01:21]} g6 {[%emt 0:01:11]} 12. Rad1 {[%emt 0:06:57]} Nc7 {[%emt 0:02:11]} 13. e4 {[%emt 0:05:03]} Ne6 {[%emt 0:01:28]} 14. h3 {[%emt 0:04:47]} Nh5 {[%emt 0:03:07]} 15. Kh2 {[%emt 0:08:53]} Nhg7 {[%emt 0:02:17]} 16. f4 {[%emt 0:12:08]} f5 {[%emt 0:01:50]} 17. Nf3 {[%emt 0:03:04]} fxe4 {[%emt 0:03:45]} 18. Nxe4 {[%emt 0:01:26]} Nf5 {[%emt 0:00:10]} 19. Rfe1 {[%emt 0:03:56]} b6 {[%emt 0:09:36]} 20. Nd6 {[%emt 0:09:11]} Nxd6 {[%emt 0:02:40]} 21. Rxd6 {[%emt 0:00:08]} Rf7 {[%emt 0:02:13]} 22. Ne5 {[%emt 0:02:49]} Re7 {[%emt 0:04:35]} 23. Red1 {[%emt 0:02:02]} Nf8 {[%emt 0:00:41]} 24. h4 {[%emt 0:00:59]} a5 {[%emt 0:06:59]} 25. Bh3 {[%emt 0:02:01]} b5 {[%emt 0:01:08]} 26. c5 {[%emt 0:02:52]} b4 {[%emt 0:01:57]} 27. Bxd7 {[%emt 0:07:03]} Bxd7 {[%emt 0:05:24]} 28. Nxd7 {[%emt 0:00:51]} Nxd7 {[%emt 0:00:25]} 29. Rxd7 {[%emt 0:00:30]} Re2+ {[%emt 0:00:17]} 30. Kh3 {[%emt 0:00:13]} Rxb2 {[%emt 0:00:40]} 31. Rb7 {[%emt 0:02:11]} Rxa2 {[%emt 0:04:06]} 32. Rdd7 {[%emt 0:00:02]} h5 {[%emt 0:01:52]} 33. Rg7+ {[%emt 0:01:13]} Kh8 {[%emt 0:00:50]} 34. Rxg6 {[%emt 0:00:27]} a4 {[%emt 0:03:20]} 35. Rh6+ {[%emt 0:00:49]} Kg8 {[%emt 0:00:23]} 36. Rxb4 {[%emt 0:00:30]} a3 {[%emt 0:01:46]} 37. Rb6 {[%emt 0:05:32]} Rh2+ {[%emt 0:01:03]} 38. Kxh2 {[%emt 0:00:24]} a2 {[%emt 0:00:09]} 39. Rxh5 {[%emt 0:02:46]} a1=Q {[%emt 0:00:45]} 40. Rg5+ {[%emt 0:00:03]} Kf8 {[%emt 0:03:19]} 41. Rb7 {[%emt 0:32:29]} Qa2+ {[%emt 0:31:22]} 42. Kh3 {[%emt 0:00:19]} Ra7 {[%emt 0:04:41]} 43. Rxa7 {[%emt 0:00:44]} Qxa7 {[%emt 0:00:18]} 44. h5 {[%emt 0:00:00]} Qh7 {[%emt 0:00:00]} 45. Kh4 {[%emt 0:00:00]} Qe4 {[%emt 0:00:00]} 46. Re5 {[%emt 0:00:00]} Qf3 {[%emt 0:00:00]} 47. Rf5+ {[%emt 0:00:00]} Kg7 {[%emt 0:00:00]} 48. Rg5+ {[%emt 0:00:00]} Kh7 {[%emt 0:00:00]} 49. Re5 {[%emt 0:00:00]} Kh6 50. Re6+ {[%emt 0:00:00]} 1/2-1/2

[Event "Niedersachsen-ch A 2024"]
[Site "Verden Aller"]
[Date "2024.01.05"]
[Round "3.19"]
[White "Kieselbach, Jannik"]
[Black "Schramm, Kilian"]
[Result "*"]
[ECO "B22"]
[WhiteElo "1885"]
[BlackElo "1729"]
[Annotator "NA RC"]
[PlyCount "30"]
[EventDate "2024.01.01"]
[EventType "swiss"]
[EventCountry "GER"]
[SourceTitle "playchess.com"]
[Source "ChessBase"]
[SourceQuality "1"]
[TimeControl "40/5400+30:1800+30"]

1. e4 {[%emt 0:00:04]} c5 {[%emt 0:00:03]} 2. c3 {[%emt 0:00:25]} d5 {[%emt 0:00:04]} 3. exd5 {[%emt 0:00:08]} Nf6 {[%emt 0:00:04]} 4. d4 {[%emt 0:00:29]} Nxd5 {[%emt 0:00:05]} 5. Nf3 {[%emt 0:00:30]} cxd4 $11 {[%emt 0:00:35]} 6. Qxd4 {[%emt 0:06:00]} Nc6 {[%emt 0:02:53]} 7. Bb5 {[%emt 0:02:13]} Bf5 {[%emt 0:02:13]} 8. Ne5 {[%emt 0:36:08]} Qd6 {[%emt 0:01:56]} 9. O-O {[%emt 0:03:43]} Bd7 {[%emt 0:09:35]} 10. Bxc6 {[%emt 0:03:50]} Bxc6 {[%emt 0:00:18]} 11. Nxc6 {[%emt 0:00:59]} Qxc6 {[%emt 0:00:52]} 12. c4 {[%emt 0:10:10]} Nf6 {[%emt 0:06:59]} 13. b3 {[%emt 0:02:42]} e6 {[%emt 0:00:24]} 14. Bb2 {[%emt 0:00:52]} Bc5 {[%emt 0:08:11]} 15. Qh4 {[%emt 0:29:47]} O-O-O {[%emt 1:03:48]} *

[Event "Niedersachsen-ch A 2024"]
[Site "Verden Aller"]
[Date "2024.01.05"]
[Round "3.20"]
[White "Kozik, Andreas"]
[Black "Zweigait, Leon"]
[Result "*"]
[ECO "A47"]
[WhiteElo "1912"]
[BlackElo "1526"]
[Annotator "RC"]
[PlyCount "41"]
[EventDate "2024.01.01"]
[EventType "swiss"]
[EventCountry "GER"]
[SourceTitle "playchess.com"]
[Source "ChessBase"]
[SourceQuality "1"]
[TimeControl "40/5400+30:1800+30"]

1. d4 {[%emt 0:00:02]} Nf6 {[%emt 0:00:06]} 2. Nf3 {[%emt 0:00:05]} e6 {[%emt 0:00:09]} 3. Bf4 {[%emt 0:00:13]} b6 {[%emt 0:00:27]} 4. e3 {[%emt 0:00:19]} Bb7 {[%emt 0:00:10]} 5. Nbd2 {[%emt 0:00:44]} g6 {[%emt 0:01:27]} 6. c3 {[%emt 0:01:45]} Bg7 {[%emt 0:00:06]} 7. h3 {[%emt 0:05:53]} d6 {[%emt 0:00:32]} 8. Be2 {[%emt 0:01:04]} Nbd7 {[%emt 0:00:30]} 9. O-O {[%emt 0:01:46]} Qe7 {[%emt 0:00:20]} 10. Bh2 {[%emt 0:05:07]} O-O {[%emt 1:31:43]} 11. a4 {[%emt 0:01:37]} h6 {[%emt 0:01:35]} 12. a5 {[%emt 0:00:38]} Rad8 {[%emt 0:01:58]} 13. axb6 {[%emt 0:04:01]} axb6 {[%emt 0:00:07]} 14. Ra7 {[%emt 0:02:57]} Rb8 {[%emt 0:00:30]} 15. b4 {[%emt 0:08:43]} e5 {[%emt 0:00:39]} 16. Qb3 {[%emt 0:01:20]} Rfe8 {[%emt 0:07:18]} 17. Rfa1 {[%emt 0:02:42]} Nh7 {[%emt 0:03:08]} 18. Ba6 {[%emt 0:08:21]} Bxa6 {[%emt 0:00:31]} 19. R1xa6 {[%emt 0:00:13]} Rbc8 {[%emt 0:04:59]} 20. b5 {[%emt 0:21:03]} Ng5 {[%emt 0:05:18]} 21. Bg3 {[%emt 0:19:44]} *

[Event "Niedersachsen-ch A 2024"]
[Site "Verden Aller"]
[Date "2024.01.05"]
[Round "3.21"]
[White "Hoke, Adrian"]
[Black "Seer, Maurice"]
[Result "1/2-1/2"]
[ECO "C88"]
[WhiteElo "1765"]
[BlackElo "1912"]
[Annotator "NA RC"]
[PlyCount "98"]
[EventDate "2024.01.01"]
[EventType "swiss"]
[EventCountry "GER"]
[SourceTitle "playchess.com"]
[Source "ChessBase"]
[SourceQuality "1"]
[TimeControl "40/5400+30:1800+30"]

1. e4 {[%emt 0:00:03]} e5 {[%emt 0:00:05]} 2. Nf3 {[%emt 0:00:17]} Nc6 {[%emt 0:00:07]} 3. Bb5 {[%emt 0:00:25]} a6 {[%emt 0:00:05]} 4. Ba4 {[%emt 0:00:05]} Nf6 {[%emt 0:00:07]} 5. O-O {[%emt 0:00:54]} Be7 {[%emt 0:00:12]} 6. Re1 {[%emt 0:00:17]} b5 {[%emt 0:00:09]} 7. Bb3 {[%emt 0:00:14]} O-O {[%emt 0:00:11]} 8. a4 {[%emt 0:01:09]} b4 {[%emt 0:03:18]} 9. c3 {[%emt 0:05:46]} d6 {[%emt 0:13:44]} 10. d3 {[%emt 0:06:33]} Rb8 {[%emt 0:09:11]} 11. Nbd2 {[%emt 0:03:33]} Na5 {[%emt 0:06:30]} 12. Bc2 {[%emt 0:05:26]} c5 {[%emt 0:06:51]} 13. Nb3 {[%emt 0:12:03]} Nc6 {[%emt 0:08:05]} 14. Nbd2 {[%emt 0:11:16]} Qc7 {[%emt 0:02:36]} 15. c4 {[%emt 0:01:09]} Bg4 {[%emt 0:00:52]} 16. h3 {[%emt 0:00:50]} Bh5 {[%emt 0:01:16]} 17. g4 {[%emt 0:02:09]} Nxg4 {[%emt 0:09:20]} 18. hxg4 {[%emt 0:02:04]} Bxg4 {[%emt 0:00:11]} 19. d4 {[%emt 0:18:56]} Nxd4 {[%emt 0:01:46]} 20. Bd3 {[%emt 0:00:15]} Qd7 {[%emt 0:15:22]} 21. Be2 {[%emt 0:02:47]} Nxe2+ {[%emt 0:02:03]} 22. Qxe2 {[%emt 0:01:49]} f5 {[%emt 0:01:42]} 23. Qd3 {[%emt 0:02:25]} fxe4 {[%emt 0:05:25]} 24. Qxe4 {[%emt 0:04:16]} Rf4 {[%emt 0:01:37]} 25. Qd5+ {[%emt 0:00:43]} Be6 {[%emt 0:01:13]} 26. Nxe5 {[%emt 0:00:36]} dxe5 {[%emt 0:03:35]} 27. Qxd7 {[%emt 0:04:34]} Bxd7 {[%emt 0:00:04]} 28. Rxe5 {[%emt 0:00:19]} Rg4+ {[%emt 0:01:41]} 29. Kf1 {[%emt 0:01:32]} Bf8 {[%emt 0:01:50]} 30. b3 {[%emt 0:02:37]} Re8 {[%emt 0:01:31]} 31. Bb2 {[%emt 0:01:56]} g6 {[%emt 0:01:28]} 32. Rae1 {[%emt 0:01:22]} Rxe5 {[%emt 0:00:36]} 33. Bxe5 {[%emt 0:00:02]} Bf5 {[%emt 0:01:20]} 34. f3 {[%emt 0:01:58]} Rh4 {[%emt 0:00:41]} 35. Kg2 {[%emt 0:00:23]} Kf7 {[%emt 0:00:54]} 36. Re2 {[%emt 0:01:19]} Be7 {[%emt 0:00:55]} 37. Re1 {[%emt 0:03:39]} g5 {[%emt 0:00:47]} 38. Nf1 {[%emt 0:00:54]} Rh6 {[%emt 0:01:05]} 39. Ne3 {[%emt 0:00:31]} Bh3+ {[%emt 0:00:43]} 40. Kg3 {[%emt 0:00:12]} Bc8 {[%emt 0:00:36]} 41. Nd5 {[%emt 0:31:49]} Bd6 {[%emt 0:10:57]} 42. Bxd6 {[%emt 0:00:00]} Rxd6 {[%emt 0:00:05]} 43. Re7+ {[%emt 0:00:00]} Kg6 {[%emt 0:03:06]} 44. Rc7 {[%emt 0:00:00]} Be6 {[%emt 0:04:26]} 45. Rxc5 {[%emt 0:00:00]} Bxd5 {[%emt 0:01:03]} 46. cxd5 {[%emt 0:00:00]} Kf5 {[%emt 0:01:28]} 47. Rc4 {[%emt 0:00:00]} h5 {[%emt 0:04:08]} 48. Rxb4 {[%emt 0:00:00]} Rxd5 {[%emt 0:00:49]} 49. Rb8 {[%emt 0:00:00]} a5 {[%emt 0:09:14]} 1/2-1/2

[Event "Niedersachsen-ch A 2024"]
[Site "Verden Aller"]
[Date "2024.01.05"]
[Round "3.22"]
[White "Soellig, Martin"]
[Black "Rausch, Darius"]
[Result "*"]
[ECO "B25"]
[WhiteElo "1892"]
[BlackElo "1742"]
[Annotator "NA RC"]
[PlyCount "46"]
[EventDate "2024.01.01"]
[EventType "swiss"]
[EventCountry "GER"]
[SourceTitle "playchess.com"]
[Source "ChessBase"]
[SourceQuality "1"]
[TimeControl "40/5400+30:1800+30"]

1. e4 {[%emt 0:00:07]} c5 {[%emt 0:00:01]} 2. Nc3 {[%emt 0:00:21]} g6 {[%emt 0:00:04]} 3. g3 {[%emt 0:00:16]} Bg7 {[%emt 0:00:06]} 4. Bg2 {[%emt 0:00:06]} d6 {[%emt 0:00:05]} 5. Nge2 {[%emt 0:00:13]} e6 {[%emt 0:00:06]} 6. d3 {[%emt 0:00:23]} Nc6 {[%emt 0:00:08]} 7. O-O {[%emt 0:00:14]} Nge7 {[%emt 0:00:06]} 8. Bg5 {[%emt 0:00:50]} Rb8 {[%emt 0:00:06]} 9. Qd2 {[%emt 0:00:42]} h6 {[%emt 0:00:06]} 10. Be3 {[%emt 0:00:07]} b5 {[%emt 0:00:05]} 11. a3 {[%emt 0:00:44]} a5 {[%emt 0:00:05]} 12. Rae1 {[%emt 0:01:47]} b4 {[%emt 0:02:38]} 13. axb4 {[%emt 0:01:34]} axb4 {[%emt 0:00:06]} 14. Nd1 {[%emt 0:00:18]} Ba6 {[%emt 0:04:45]} 15. f4 {[%emt 1:30:18]} Qb6 {[%emt 0:06:21]} 16. g4 {[%emt 0:02:14]} f5 {[%emt 0:04:16]} 17. exf5 {[%emt 0:02:38]} gxf5 {[%emt 0:06:16]} 18. Ng3 {[%emt 0:05:01]} Kd7 {[%emt 0:12:35]} 19. Qe2 {[%emt 0:07:55]} Rbe8 {[%emt 0:17:18]} 20. Nh5 {[%emt 0:06:17]} Nd4 {[%emt 0:04:28]} 21. Bxd4 {[%emt 0:03:32]} Bxd4+ {[%emt 0:00:06]} 22. Kh1 {[%emt 0:00:09]} Rhg8 {[%emt 0:10:28]} 23. Qxe6+ {[%emt 0:04:00]} Kc7 {[%emt 0:05:39]} *

[Event "Niedersachsen-ch A 2024"]
[Site "Verden Aller"]
[Date "2024.01.05"]
[Round "3.23"]
[White "Ahlbrecht, Malte"]
[Black "Thomas, Jeremy"]
[Result "1-0"]
[ECO "B22"]
[WhiteElo "1727"]
[BlackElo "1893"]
[Annotator "NA RC"]
[PlyCount "107"]
[EventDate "2024.01.01"]
[EventType "swiss"]
[EventCountry "GER"]
[SourceTitle "playchess.com"]
[Source "ChessBase"]
[SourceQuality "1"]
[TimeControl "40/5400+30:1800+30"]

1. e4 {[%emt 0:00:01]} c5 {[%emt 0:00:15]} 2. c3 {[%emt 0:00:00]} d5 {[%emt 0:00:43]} 3. exd5 {[%emt 1:31:59]} Qxd5 {[%emt 0:00:10]} 4. d4 {[%emt 0:00:00]} cxd4 {[%emt 0:06:49]} 5. cxd4 {[%emt 0:00:00]} Nc6 {[%emt 0:06:36]} 6. Be3 {[%emt 0:00:00]} Nf6 {[%emt 0:14:48]} 7. Nc3 {[%emt 0:00:00]} Qa5 {[%emt 0:02:50]} 8. d5 {[%emt 0:00:00]} Nb4 {[%emt 0:08:13]} 9. a3 {[%emt 0:00:00]} Na6 {[%emt 0:15:40]} 10. b4 {[%emt 0:00:00]} Qd8 {[%emt 0:03:24]} 11. Qb3 {[%emt 0:00:00]} Nc7 {[%emt 0:09:45]} 12. Bc4 {[%emt 0:00:00]} Bd7 {[%emt 0:05:27]} 13. Nf3 {[%emt 0:00:00]} b5 {[%emt 0:00:55]} 14. Be2 {[%emt 0:00:00]} g6 {[%emt 0:04:22]} 15. Ne5 {[%emt 0:00:00]} a6 {[%emt 0:05:57]} 16. Bb6 {[%emt 0:03:15]} Qc8 {[%emt 0:01:45]} 17. Bf3 {[%emt 0:01:53]} Rb8 {[%emt 0:05:45]} 18. Bxc7 {[%emt 0:00:45]} Qxc7 {[%emt 0:00:01]} 19. d6 {[%emt 0:00:55]} Qxd6 {[%emt 0:00:14]} 20. Qxf7+ {[%emt 0:00:14]} Kd8 {[%emt 0:00:01]} 21. Nxd7 {[%emt 0:00:31]} Nxd7 {[%emt 0:01:57]} 22. Rd1 {[%emt 0:00:46]} Qe5+ {[%emt 0:01:27]} 23. Ne4 {[%emt 0:00:09]} Kc7 {[%emt 0:01:04]} 24. O-O {[%emt 0:01:01]} Bh6 {[%emt 0:00:01]} 25. Rxd7+ {[%emt 0:00:32]} Kxd7 {[%emt 0:00:09]} 26. Nc5+ {[%emt 0:00:01]} Kc7 {[%emt 0:01:39]} 27. Nxa6+ {[%emt 0:01:00]} Kb6 28. Nxb8 {[%emt 0:01:28]} Rxb8 {[%emt 0:00:21]} 29. Qxh7 {[%emt 0:00:00]} Bf4 {[%emt 0:04:06]} 30. Qxg6+ {[%emt 0:00:00]} Ka7 {[%emt 0:00:01]} 31. Qh5 {[%emt 0:00:46]} Qd6 {[%emt 0:01:01]} 32. Qc5+ {[%emt 0:00:29]} Ka6 {[%emt 0:00:29]} 33. Qxd6+ {[%emt 0:00:33]} exd6 {[%emt 0:00:00]} 34. g3 {[%emt 0:00:18]} Be5 {[%emt 0:00:01]} 35. Rd1 {[%emt 0:00:15]} Rc8 {[%emt 0:00:05]} 36. Rd3 {[%emt 0:00:57]} Rc3 {[%emt 0:01:04]} 37. Be2 {[%emt 0:00:34]} Kb6 {[%emt 0:00:43]} 38. Rd5 {[%emt 0:00:30]} Rxa3 {[%emt 0:00:22]} 39. Rxb5+ {[%emt 0:00:27]} Kc6 {[%emt 0:00:01]} 40. Ra5 {[%emt 0:00:26]} Rb3 {[%emt 0:00:23]} 41. b5+ {[%emt 0:06:25]} Kc5 {[%emt 0:00:47]} 42. Ra2 {[%emt 0:03:01]} d5 {[%emt 0:01:17]} 43. Rc2+ {[%emt 0:01:29]} Bc3 {[%emt 0:00:56]} 44. h4 {[%emt 0:01:55]} Kd4 {[%emt 0:00:28]} 45. Kg2 {[%emt 0:04:08]} Ke4 {[%emt 0:00:46]} 46. Rc1 {[%emt 0:09:22]} d4 {[%emt 0:03:42]} 47. Rd1 {[%emt 0:01:04]} Bb2 {[%emt 0:03:40]} 48. h5 {[%emt 0:03:16]} Ba3 {[%emt 0:02:28]} 49. h6 {[%emt 0:01:36]} Bd6 {[%emt 0:01:27]} 50. Bf3+ {[%emt 0:02:44]} Rxf3 {[%emt 0:02:43]} 51. Re1+ {[%emt 0:00:33]} Re3 52. fxe3 {[%emt 0:00:04]} d3 {[%emt 0:03:00]} 53. h7 {[%emt 0:00:07]} Be5 {[%emt 0:00:53]} 54. b6 {[%emt 0:00:12]} 1-0

[Event "Niedersachsen-ch A 2024"]
[Site "Verden Aller"]
[Date "2024.01.05"]
[Round "3.24"]
[White "Bulygin, Anton"]
[Black "Wilmink, Anna"]
[Result "*"]
[ECO "A36"]
[WhiteElo "2040"]
[BlackElo "1822"]
[Annotator "RC"]
[PlyCount "54"]
[EventDate "2024.01.01"]
[EventType "swiss"]
[EventCountry "GER"]
[SourceTitle "playchess.com"]
[Source "ChessBase"]
[SourceQuality "1"]
[TimeControl "40/5400+30:1800+30"]

1. e4 {[%emt 0:00:14]} c5 {[%emt 0:00:30]} 2. c4 {[%emt 0:00:10]} Nc6 {[%emt 0:00:58]} 3. Nc3 {[%emt 0:00:17]} g6 {[%emt 0:02:30]} 4. g3 {[%emt 0:00:23]} Bg7 {[%emt 0:02:36]} 5. Bg2 {[%emt 0:00:12]} e6 {[%emt 1:26:26]} 6. Nge2 {[%emt 0:00:31]} Nge7 {[%emt 0:02:28]} 7. d3 {[%emt 1:32:13]} O-O {[%emt 0:02:25]} 8. O-O {[%emt 0:00:26]} a6 {[%emt 0:03:15]} 9. Bf4 {[%emt 0:00:48]} d6 {[%emt 0:02:16]} 10. Qd2 {[%emt 0:00:11]} Nd4 {[%emt 1:15:06]} 11. Nxd4 {[%emt 0:00:36]} cxd4 {[%emt 0:00:41]} 12. Ne2 {[%emt 0:00:13]} e5 {[%emt 0:02:03]} 13. Bh6 {[%emt 0:00:39]} Rb8 {[%emt 0:03:04]} 14. Bxg7 {[%emt 0:00:11]} Kxg7 {[%emt 0:00:22]} 15. f4 {[%emt 0:00:20]} f5 {[%emt 0:04:14]} 16. fxe5 {[%emt 0:00:49]} dxe5 {[%emt 0:01:09]} 17. b4 {[%emt 0:00:56]} Bd7 {[%emt 0:03:41]} 18. a4 {[%emt 0:01:21]} fxe4 {[%emt 0:07:11]} 19. Rxf8 {[%emt 0:00:50]} Qxf8 {[%emt 0:00:45]} 20. dxe4 {[%emt 0:00:19]} Nc8 {[%emt 0:06:00]} 21. Nxd4 {[%emt 0:00:47]} Qe8 {[%emt 0:09:44]} 22. Nf3 {[%emt 0:01:05]} Bg4 {[%emt 0:10:55]} 23. b5 {[%emt 0:06:43]} Bxf3 {[%emt 0:05:36]} 24. Bxf3 {[%emt 0:00:09]} Qe7 {[%emt 0:01:39]} 25. Qe3 {[%emt 0:05:52]} axb5 {[%emt 0:01:35]} 26. axb5 {[%emt 0:01:32]} Nd6 {[%emt 0:03:27]} 27. Be2 {[%emt 0:00:15]} b6 {[%emt 0:05:44]} *